fUSD/lending_fUSD_20250103
["ID","MTS","AMOUNT","RATE_DAILY","PERIOD"]
[347537626,1735907447247,-500.0,9.157e-05,2]
[347537627,1735907447256,-528.91,9.157e-05,2]
[347537628,1735907447266,-500.0,9.157e-05,2]
[347537629,1735907447275,-500.0,9.157e-05,2]
[347537630,1735907447285,-500.0,9.157e-05,2]
[347537631,1735907447295,-500.0,9.157e-05,2]
[347537632,1735907447304,-500.0,9.157e-05,2]
[347537633,1735907447313,-500.0,9.157e-05,2]
[347537634,1735907447322,-500.0,9.157e-05,2]
[347537635,1735907447332,-500.0,9.157e-05,2]
[347537636,1735907447342,-500.0,9.157e-05,2]
[347537637,1735907447351,-500.0,9.157e-05,2]
[347537638,1735907447360,-500.0,9.157e-05,2]
[347537639,1735907447370,-500.0,9.157e-05,2]
[347537640,1735907447379,-500.0,9.157e-05,2]
[347537641,1735907447388,-500.0,9.157e-05,2]
[347537642,1735907447399,-500.0,9.157e-05,2]
[347537643,1735907447411,-500.0,9.157e-05,2]
[347537644,1735907447421,-500.0,9.157e-05,2]
[347537645,1735907447431,-500.0,9.157e-05,2]
[347537646,1735907447440,-500.0,9.157e-05,2]
[347537647,1735907447449,-500.0,9.157e-05,2]
[347537648,1735907447458,-599.84,9.157e-05,2]
[347537649,1735907447468,-500.0,9.157e-05,2]
[347537650,1735907447477,-500.0,9.157e-05,2]
[347537651,1735907447488,-500.0,9.157e-05,2]
[347537652,1735907447497,-371.56838727,9.157e-05,2]
[347537653,1735907447506,-500.0,9.157e-05,2]
[347537654,1735907447515,-500.0,9.157e-05,2]
[347537655,1735907447525,-500.0,9.157e-05,2]
[347537656,1735907447535,-500.0,9.157e-05,2]
[347537657,1735907447544,-242.96031348,9.157e-05,2]
[347537658,1735907447554,-500.0,9.157e-05,2]
[347537659,1735907447563,-500.0,9.157e-05,2]
[347537660,1735907447572,-500.0,9.157e-05,2]
[347537661,1735907447582,-500.0,9.157e-05,2]
[347537662,1735907447592,-696.63,9.157e-05,2]
[347537663,1735907447601,-905.59,9.157e-05,2]
[347537664,1735907447611,-500.0,9.157e-05,2]
[347537665,1735907447621,-500.0,9.157e-05,2]
[347537666,1735907447631,-522.87,9.157e-05,2]
[347537667,1735907447640,-500.0,9.157e-05,2]
[347537668,1735907447650,-500.0,9.157e-05,2]
[347537669,1735907447659,-500.0,9.157e-05,2]
[347537670,1735907447669,-500.0,9.157e-05,2]
[347537671,1735907447679,-500.0,9.157e-05,2]
[347537672,1735907447688,-255.01592385,9.157e-05,2]
[347537673,1735907447701,-545.93407615,9.157e-05,2]
[347537674,1735907447711,-500.0,9.157e-05,2]
[347537675,1735907447720,-500.0,9.157e-05,2]
[347537676,1735907447730,-510.99,9.157e-05,2]
[347537677,1735907447740,-500.0,9.157e-05,2]
[347537678,1735907447750,-500.0,9.157e-05,2]
[347537679,1735907447760,-500.0,9.157e-05,2]
[347537680,1735907447769,-500.0,9.157e-05,2]
[347537681,1735907447778,-500.0,9.157e-05,2]
[347537682,1735907447788,-599.29,9.157e-05,2]
[347537683,1735907447797,-500.0,9.157e-05,2]
[347537684,1735907447806,-500.0,9.157e-05,2]
[347537685,1735907447816,-500.0,9.157e-05,2]
[347537686,1735907447825,-500.0,9.157e-05,2]
[347537687,1735907447836,-183.20530097,9.157e-05,2]
[347537688,1735907447846,-837.14,9.157e-05,2]
[347537689,1735907447855,-500.0,9.157e-05,2]
[347537690,1735907447864,-806.86,9.157e-05,2]
[347537691,1735907447873,-500.0,9.157e-05,2]
[347537692,1735907447883,-500.0,9.157e-05,2]
[347537693,1735907447892,-500.0,9.157e-05,2]
[347537694,1735907447901,-500.0,9.157e-05,2]
[347537695,1735907447911,-500.0,9.157e-05,2]
[347537696,1735907447920,-500.0,9.157e-05,2]
[347537697,1735907447929,-500.0,9.157e-05,2]
[347537698,1735907447939,-500.0,9.157e-05,2]
[347537699,1735907447949,-505.44266128,9.157e-05,2]
[347537700,1735907447958,-180.65793965,9.157e-05,2]
[347537701,1735907447968,-500.0,9.157e-05,2]
[347537702,1735907447977,-682.45,9.157e-05,2]
[347537703,1735907447987,-500.0,9.157e-05,2]
[347537704,1735907447996,-500.0,9.157e-05,2]
[347537705,1735907448006,-730.27,9.157e-05,2]
[347537706,1735907448016,-500.0,9.157e-05,2]
[347537707,1735907448026,-502.54,9.157e-05,2]
[347537708,1735907448037,-500.0,9.157e-05,2]
[347537709,1735907448049,-500.0,9.157e-05,2]
[347537710,1735907448060,-500.0,9.157e-05,2]
[347537711,1735907448070,-500.0,9.157e-05,2]
[347537712,1735907448081,-500.0,9.157e-05,2]
[347537713,1735907448094,-500.0,9.157e-05,2]
[347537714,1735907448104,-500.0,9.157e-05,2]
[347537715,1735907448114,-500.0,9.157e-05,2]
[347537716,1735907448125,-500.0,9.157e-05,2]
[347537717,1735907448136,-500.0,9.157e-05,2]
[347537718,1735907448147,-500.0,9.157e-05,2]
[347537719,1735907448157,-500.0,9.157e-05,2]
[347537720,1735907448166,-249.73402863,9.157e-05,2]
[347537721,1735907448176,-500.0,9.157e-05,2]
[347537722,1735907448185,-500.0,9.157e-05,2]
[347537723,1735907448194,-801.35,9.157e-05,2]
[347537724,1735907448204,-500.0,9.157e-05,2]
[347537725,1735907448215,-500.0,9.157e-05,2]
[347537726,1735907448225,-1013.7,9.157e-05,2]
[347537727,1735907448234,-500.0,9.157e-05,2]
[347537728,1735907448244,-500.0,9.157e-05,2]
[347537729,1735907448254,-792.39,9.157e-05,2]
[347537730,1735907448263,-500.0,9.157e-05,2]
[347537731,1735907448273,-548.43,9.157e-05,2]
[347537732,1735907448283,-500.0,9.157e-05,2]
[347537733,1735907448293,-500.0,9.157e-05,2]
[347537734,1735907448302,-547.88,9.157e-05,2]
[347537735,1735907448312,-500.0,9.157e-05,2]
[347537736,1735907448321,-500.0,9.157e-05,2]
[347537737,1735907448330,-501.2384666,9.157e-05,2]
[347537738,1735907448339,-500.0,9.157e-05,2]
[347537739,1735907448348,-500.0,9.157e-05,2]
[347537740,1735907448358,-500.0,9.157e-05,2]
[347537741,1735907448367,-500.0,9.157e-05,2]
[347537742,1735907448376,-562.29736993,9.157e-05,2]
[347537743,1735907448385,-500.0,9.157e-05,2]
[347537744,1735907448394,-500.0,9.157e-05,2]
[347537745,1735907448403,-500.0,9.157e-05,2]
[347537746,1735907448412,-500.0,9.157e-05,2]
[347537747,1735907448421,-500.0,9.157e-05,2]
[347537748,1735907448431,-500.0,9.157e-05,2]
[347537749,1735907448440,-500.0,9.157e-05,2]
[347537750,1735907448449,-500.0,9.157e-05,2]
[347537751,1735907448459,-500.0,9.157e-05,2]
[347537752,1735907448468,-500.0,9.157e-05,2]
[347537753,1735907448477,-672.44,9.157e-05,2]
[347537754,1735907448487,-500.0,9.157e-05,2]
[347537755,1735907448496,-500.0,9.157e-05,2]
[347537756,1735907448506,-500.0,9.157e-05,2]
[347537757,1735907448515,-500.0,9.157e-05,2]
[347537758,1735907448524,-500.0,9.157e-05,2]
[347537759,1735907448535,-500.0,9.157e-05,2]
[347537760,1735907448544,-500.0,9.157e-05,2]
[347537761,1735907448553,-500.0,9.157e-05,2]
[347537762,1735907448563,-500.0,9.157e-05,2]
[347537763,1735907448572,-500.0,9.157e-05,2]
[347537764,1735907448581,-500.0,9.157e-05,2]
[347537765,1735907448592,-500.0,9.157e-05,2]
[347537766,1735907448601,-500.0,9.157e-05,2]
[347537767,1735907448611,-661.61,9.157e-05,2]
[347537768,1735907448621,-781.84,9.157e-05,2]
[347537769,1735907448630,-500.0,9.157e-05,2]
[347537770,1735907448640,-500.0,9.157e-05,2]
[347537771,1735907448649,-500.0,9.157e-05,2]
[347537772,1735907448659,-633.33,9.157e-05,2]
[347537773,1735907448668,-582.88,9.157e-05,2]
[347537774,1735907448678,-955.97,9.157e-05,2]
[347537775,1735907448688,-500.0,9.157e-05,2]
[347537776,1735907448698,-521.13,9.157e-05,2]
[347537777,1735907448707,-500.0,9.157e-05,2]
[347537778,1735907448717,-500.0,9.157e-05,2]
[347537779,1735907448726,-500.0,9.157e-05,2]
[347537780,1735907448735,-512.46,9.157e-05,2]
[347537781,1735907448745,-827.82,9.157e-05,2]
[347537782,1735907448754,-500.0,9.157e-05,2]
[347537783,1735907448763,-520.43,9.157e-05,2]
[347537784,1735907448772,-500.0,9.157e-05,2]
[347537785,1735907448781,-500.0,9.157e-05,2]
[347537786,1735907448791,-500.0,9.157e-05,2]
[347537787,1735907448800,-500.0,9.157e-05,2]
[347537788,1735907448809,-500.0,9.157e-05,2]
[347537789,1735907448818,-500.0,9.157e-05,2]
[347537790,1735907448827,-500.0,9.157e-05,2]
[347537791,1735907448836,-500.0,9.157e-05,2]
[347537792,1735907448845,-500.0,9.157e-05,2]
[347537793,1735907449102,-500.0,9.157e-05,2]
[347537794,1735907449114,-599.64,9.157e-05,2]
[347537795,1735907449125,-500.0,9.157e-05,2]
[347537796,1735907449134,-500.0,9.157e-05,2]
[347537797,1735907449143,-559.64,9.157e-05,2]
[347537798,1735907449153,-862.28,9.157e-05,2]
[347537799,1735907449162,-500.0,9.157e-05,2]
[347537800,1735907449172,-500.0,9.157e-05,2]
[347537801,1735907449181,-643.39,9.157e-05,2]
[347537802,1735907449191,-559.24,9.157e-05,2]
[347537803,1735907449200,-500.0,9.157e-05,2]
[347537804,1735907449210,-500.0,9.157e-05,2]
[347537805,1735907449220,-500.0,9.157e-05,2]
[347537806,1735907449229,-500.0,9.157e-05,2]
[347537807,1735907449239,-500.0,9.157e-05,2]
[347537808,1735907449249,-500.0,9.157e-05,2]
[347537809,1735907449258,-500.0,9.157e-05,2]
[347537810,1735907449267,-500.0,9.157e-05,2]
[347537811,1735907449277,-500.0,9.157e-05,2]
[347537812,1735907449286,-500.0,9.157e-05,2]
[347537813,1735907449295,-500.0,9.157e-05,2]
[347537814,1735907449304,-500.0,9.157e-05,2]
[347537815,1735907449313,-856.89,9.157e-05,2]
[347537816,1735907449322,-500.0,9.157e-05,2]
[347537817,1735907449331,-500.0,9.157e-05,2]
[347537818,1735907449342,-510.6,9.157e-05,2]
[347537819,1735907449352,-500.0,9.157e-05,2]
[347537820,1735907449362,-500.0,9.157e-05,2]
[347537821,1735907449371,-500.0,9.157e-05,2]
[347537822,1735907449380,-555.74,9.157e-05,2]
[347537823,1735907449390,-500.0,9.157e-05,2]
[347537824,1735907449399,-500.0,9.157e-05,2]
[347537825,1735907449409,-500.0,9.157e-05,2]
[347537826,1735907449418,-1202.44,9.157e-05,2]
[347537827,1735907449428,-736.28,9.157e-05,2]
[347537828,1735907449438,-500.0,9.157e-05,2]
[347537829,1735907449448,-500.0,9.157e-05,2]
[347537830,1735907449459,-500.0,9.157e-05,2]
[347537831,1735907449468,-500.0,9.157e-05,2]
[347537832,1735907449478,-500.0,9.157e-05,2]
[347537833,1735907449488,-500.0,9.157e-05,2]
[347537834,1735907449497,-500.0,9.157e-05,2]
[347537835,1735907449507,-500.0,9.157e-05,2]
[347537836,1735907449517,-500.0,9.157e-05,2]
[347537837,1735907449526,-500.0,9.157e-05,2]
[347537838,1735907449535,-500.0,9.157e-05,2]
[347537839,1735907449544,-500.0,9.157e-05,2]
[347537840,1735907449554,-569.06577852,9.157e-05,2]
[347537841,1735907449563,-500.0,9.157e-05,2]
[347537842,1735907449573,-7593.64,9.157e-05,2]
[347537843,1735907449582,-500.0,9.157e-05,2]
[347537844,1735907449595,-525.39,9.157e-05,2]
[347537845,1735907449605,-500.0,9.157e-05,2]
[347537846,1735907449614,-7313.61,9.157e-05,2]
[347537847,1735907449623,-740.93,9.157e-05,2]
[347537848,1735907449633,-500.0,9.157e-05,2]
[347537849,1735907449643,-500.0,9.157e-05,2]
[347537850,1735907449652,-719.79,9.157e-05,2]
[347537851,1735907449661,-500.0,9.157e-05,2]
[347537852,1735907449672,-500.0,9.157e-05,2]
[347537853,1735907449682,-500.0,9.157e-05,2]
[347537854,1735907449691,-314.652,9.158e-05,2]
[347537855,1735907449700,-1112.47,9.202e-05,2]
[347537856,1735907449710,-1062.53680126,9.231e-05,2]
[347537857,1735907449719,-200.0,9.233e-05,2]
[347537858,1735907449729,-1000.0,9.247e-05,2]
[347537859,1735907449738,-118468.01748859,9.256e-05,2]
[347537860,1735907449748,-500.0,9.257e-05,2]
[347537861,1735907449757,-747.29,9.257e-05,2]
[347537862,1735907449765,-1229.93,9.257e-05,2]
[347537863,1735907449774,-1432.9,9.257e-05,2]
[347537864,1735907449783,-600.97,9.257e-05,2]
[347537865,1735907449792,-864.7,9.257e-05,2]
[347537866,1735907449801,-500.0,9.257e-05,2]
[347537867,1735907449810,-759.96,9.257e-05,2]
[347537868,1735907449820,-795.59,9.257e-05,2]
[347537869,1735907449829,-934.53,9.257e-05,2]
[347537870,1735907449840,-500.0,9.257e-05,2]
[347537871,1735907449850,-500.0,9.257e-05,2]
[347537872,1735907449859,-1191.23,9.257e-05,2]
[347537873,1735907449869,-500.0,9.257e-05,2]
[347537874,1735907449879,-885.32,9.257e-05,2]
[347537875,1735907449888,-843.94,9.257e-05,2]
[347537876,1735907449897,-500.0,9.257e-05,2]
[347537877,1735907449906,-1030.09,9.257e-05,2]
[347537878,1735907449916,-558.42,9.257e-05,2]
[347537879,1735907449925,-784.8,9.257e-05,2]
[347537880,1735907449934,-1091.47,9.257e-05,2]
[347537881,1735907449943,-814.45,9.257e-05,2]
[347537882,1735907449953,-2378.81,9.257e-05,2]
[347537883,1735907449962,-2023.41,9.257e-05,2]
[347537884,1735907449972,-500.0,9.257e-05,2]
[347537885,1735907449981,-622.55,9.257e-05,2]
[347537886,1735907449990,-500.0,9.257e-05,2]
[347537887,1735907450000,-690.32,9.257e-05,2]
[347537888,1735907450009,-1049.22,9.257e-05,2]
[347537889,1735907450019,-500.0,9.257e-05,2]
[347537890,1735907450028,-856.03,9.257e-05,2]
[347537891,1735907450040,-644.76,9.257e-05,2]
[347537892,1735907450050,-505.77,9.257e-05,2]
[347537893,1735907450059,-641.35,9.257e-05,2]
[347537894,1735907450068,-1614.13,9.257e-05,2]
[347537895,1735907450078,-500.0,9.257e-05,2]
[347537896,1735907450089,-1525.51,9.257e-05,2]
[347537897,1735907450098,-721.47,9.257e-05,2]
[347537898,1735907450108,-500.0,9.257e-05,2]
[347537899,1735907450117,-723.43,9.257e-05,2]
[347537900,1735907450126,-741.62,9.257e-05,2]
[347537901,1735907450136,-500.0,9.257e-05,2]
[347537902,1735907450147,-947.46,9.257e-05,2]
[347537903,1735907450156,-1077.24,9.257e-05,2]
[347537904,1735907450165,-888.06,9.257e-05,2]
[347537905,1735907450175,-540.02,9.257e-05,2]
[347537906,1735907450184,-500.0,9.257e-05,2]
[347537907,1735907450193,-500.0,9.257e-05,2]
[347537908,1735907450203,-500.0,9.257e-05,2]
[347537909,1735907450212,-547.19,9.257e-05,2]
[347537910,1735907450222,-815.44,9.257e-05,2]
[347537911,1735907450231,-1924.38,9.257e-05,2]
[347537912,1735907450240,-500.0,9.257e-05,2]
[347537913,1735907450250,-681.59,9.257e-05,2]
[347537914,1735907450259,-866.01,9.257e-05,2]
[347537915,1735907450269,-500.0,9.257e-05,2]
[347537916,1735907450278,-1187.12,9.257e-05,2]
[347537917,1735907450287,-214.6730271,9.257e-05,2]
[347537918,1735907450296,-558.51,9.257e-05,2]
[347537919,1735907450306,-500.0,9.257e-05,2]
[347537920,1735907450315,-500.0,9.257e-05,2]
[347537921,1735907450324,-500.0,9.257e-05,2]
[347537922,1735907450333,-4137.22,9.257e-05,2]
[347537923,1735907450343,-500.0,9.257e-05,2]
[347537924,1735907450352,-528.49,9.257e-05,2]
[347537925,1735907450361,-500.0,9.257e-05,2]
[347537926,1735907450371,-1694.03,9.257e-05,2]
[347537927,1735907450379,-422.70242329,9.257e-05,2]
[347537928,1735907450473,-444.62866844,9.257e-05,2]
[347537929,1735907493246,50000.0,0.0001312,24]
[347537930,1735907615203,50000.0,0.0001312,24]
[347537931,1735907627525,50000.0,0.0001312,24]
[347537932,1735907630045,-425.0,0.00014022,30]
[347537933,1735907630068,-168.0,0.00014022,30]
[347537934,1735907703496,168.19466419,0.00014022,30]
[347537935,1735907704131,404.0,0.00014022,30]
[347537936,1735907715025,50000.0,0.0001312,24]
[347537937,1735907754385,50000.0,0.0001312,24]
[347537938,1735907774296,50000.0,0.0001312,24]
[347537939,1735907796307,10000.0,0.0001411,29]
[347537941,1735907843243,10000.0,0.0001411,29]
[347537942,1735907874122,10000.0,0.0001411,29]
[347537943,1735907910557,8834.80533581,0.0001411,29]
[347537944,1735907965548,15000.0,0.00013,30]
[347537945,1735908004217,431.0,0.00013,30]
[347537946,1735908010108,25000.0,0.00013,30]
[347537947,1735908040696,24569.0,0.00013,30]
[347538002,1735908169123,-300.0,7.17e-05,2]
[347538003,1735908169153,-49700.0,7.171e-05,2]
[347538014,1735908269395,-26632.45901116,7.171e-05,2]
[347538015,1735908304074,465.0,7.171e-05,30]
[347538016,1735908304204,465.0,7.951e-05,30]
[347538017,1735908304296,465.0,8.732e-05,30]
[347538018,1735908304413,465.0,9.512e-05,30]
[347538019,1735908304677,465.0,0.00010293,30]
[347538020,1735908305032,465.0,0.00011073,30]
[347538021,1735908305385,465.0,0.00011854,30]
[347538022,1735908305728,465.0,0.00012634,30]
[347538024,1735908410723,150.0,0.00017,60]
[347538025,1735908448568,-500.0,8.983e-05,7]
[347538029,1735908570662,-291.52711838,7.865e-05,2]
[347538030,1735908604160,279.0,7.171e-05,30]
[347538031,1735908604342,279.0,7.951e-05,30]
[347538032,1735908604526,279.0,8.732e-05,30]
[347538033,1735908604836,279.0,9.512e-05,30]
[347538034,1735908605180,279.0,0.00010293,30]
[347538035,1735908605511,279.0,0.00011073,30]
[347538036,1735908605882,279.0,0.00011854,30]
[347538037,1735908606225,279.0,0.00012634,30]
[347538039,1735908632070,-250.0,7.885e-05,2]
[347538040,1735908632080,-413.78,7.885e-05,2]
[347538041,1735908632090,-83.04209386,8.03e-05,2]
[347538042,1735908632101,-3457.87183613,8.03e-05,2]
[347538043,1735908632127,-4358.4140428,8.03e-05,2]
[347538052,1735908632524,-4998.34364676,8.03e-05,2]
[347538056,1735908632556,-11002.32838045,8.03e-05,2]
[347538057,1735908632565,-494.03,8.112e-05,2]
[347538058,1735908632574,-500.0,8.145e-05,2]
[347538059,1735908632584,-18426.71851402,8.145e-05,2]
[347538060,1735908632595,-5831.13654637,8.145e-05,2]
[347538061,1735908632605,-192.97,8.195e-05,2]
[347538062,1735908632614,-1000.0,8.219e-05,2]
[347538063,1735908632625,-250.0,8.219e-05,2]
[347538064,1735908632635,-1910.25,8.219e-05,2]
[347538065,1735908632644,-1523.93,8.219e-05,2]
[347538066,1735908632653,-651.18,8.244e-05,2]
[347538067,1735908632663,-304.21,8.306e-05,2]
[347538068,1735908632672,-250.0,8.364e-05,2]
[347538069,1735908632681,-293.0,8.603e-05,2]
[347538070,1735908632690,-150.0,8.605e-05,2]
[347538071,1735908632700,-150.0,8.605e-05,2]
[347538072,1735908632709,-150.0,8.605e-05,2]
[347538073,1735908632718,-150.0,8.605e-05,2]
[347538074,1735908632727,-150.0,8.685e-05,2]
[347538075,1735908632736,-150.0,8.765e-05,2]
[347538076,1735908632746,-150.0,8.797e-05,2]
[347538077,1735908632755,-150.0,8.845e-05,2]
[347538078,1735908632764,-2770.67,8.88e-05,3]
[347538079,1735908632773,-500.0,8.881e-05,2]
[347538080,1735908632783,-2697.7647,8.882e-05,2]
[347538081,1735908632792,-24197.4,8.882e-05,2]
[347538082,1735908632802,-1233.23,8.882e-05,2]
[347538083,1735908632811,-1798.67,8.882e-05,2]
[347538084,1735908632821,-681.68,8.882e-05,2]
[347538085,1735908632830,-5188.13145056,8.882e-05,2]
[347538086,1735908632841,-60.54854944,8.882e-05,2]
[347538087,1735908632851,-1945.3,8.882e-05,2]
[347538088,1735908632860,-2895.72,8.882e-05,2]
[347538089,1735908632870,-2668.8,8.882e-05,2]
[347538090,1735908632879,-214.25091213,8.882e-05,2]
[347538091,1735908632888,-13943.25028081,8.883e-05,2]
[347538092,1735908632933,-21666.98051919,8.883e-05,2]
[347538093,1735908632942,-5000.0,8.883e-05,2]
[347538094,1735908632952,-400.0,8.9e-05,3]
[347538095,1735908632962,-150.0,8.924e-05,2]
[347538096,1735908632971,-150.0,8.924e-05,2]
[347538097,1735908632980,-150.0,8.924e-05,2]
[347538098,1735908632990,-2434.2,8.981e-05,2]
[347538099,1735908632999,-1915.34,8.981e-05,2]
[347538100,1735908633008,-3325.35,8.981e-05,2]
[347538101,1735908633018,-720.26,8.981e-05,2]
[347538102,1735908633028,-5385.91,8.981e-05,2]
[347538103,1735908633038,-500.0,8.981e-05,2]
[347538104,1735908633047,-500.0,8.981e-05,2]
[347538105,1735908633057,-744.34,8.981e-05,2]
[347538106,1735908633066,-500.0,8.981e-05,2]
[347538107,1735908633076,-1083.78,8.981e-05,2]
[347538108,1735908633085,-769.05,8.982e-05,2]
[347538109,1735908633095,-500.0,8.982e-05,2]
[347538110,1735908633105,-500.0,8.982e-05,2]
[347538111,1735908633116,-747.34,8.982e-05,2]
[347538112,1735908633126,-500.0,8.982e-05,2]
[347538113,1735908633137,-500.0,8.982e-05,2]
[347538114,1735908633147,-500.0,8.982e-05,2]
[347538115,1735908633157,-500.0,8.982e-05,2]
[347538116,1735908633166,-500.0,8.982e-05,2]
[347538117,1735908633177,-1032.33,8.982e-05,2]
[347538118,1735908633187,-777.68,8.982e-05,2]
[347538119,1735908633197,-767.42,8.982e-05,2]
[347538120,1735908633207,-709.82,8.982e-05,2]
[347538121,1735908633217,-616.35,8.982e-05,2]
[347538122,1735908633226,-500.0,8.982e-05,2]
[347538123,1735908633237,-500.0,8.982e-05,2]
[347538124,1735908633246,-500.0,8.982e-05,2]
[347538125,1735908633256,-500.0,8.982e-05,2]
[347538126,1735908633266,-503.57,8.982e-05,2]
[347538127,1735908633276,-500.0,8.982e-05,2]
[347538128,1735908633286,-500.0,8.982e-05,2]
[347538129,1735908633299,-717.61,8.982e-05,2]
[347538130,1735908633309,-500.0,8.982e-05,2]
[347538131,1735908633318,-500.0,8.982e-05,2]
[347538132,1735908633328,-156.001691,8.982e-05,2]
[347538133,1735908633338,-547.75,8.982e-05,2]
[347538134,1735908633348,-884.15,8.982e-05,2]
[347538135,1735908633357,-701.52,8.982e-05,2]
[347538136,1735908633369,-500.0,8.982e-05,2]
[347538137,1735908633379,-822.31,8.982e-05,2]
[347538138,1735908633389,-500.0,8.982e-05,2]
[347538139,1735908633399,-500.0,8.982e-05,2]
[347538140,1735908633412,-500.0,8.982e-05,2]
[347538141,1735908633421,-500.0,8.982e-05,2]
[347538142,1735908633431,-500.0,8.982e-05,2]
[347538143,1735908633441,-500.0,8.982e-05,2]
[347538144,1735908633451,-500.0,8.982e-05,2]
[347538145,1735908633462,-500.0,8.982e-05,2]
[347538146,1735908633471,-500.0,8.982e-05,2]
[347538147,1735908633481,-500.0,8.982e-05,2]
[347538148,1735908633491,-500.0,8.982e-05,2]
[347538149,1735908633501,-500.0,8.982e-05,2]
[347538150,1735908633511,-500.0,8.982e-05,2]
[347538151,1735908633521,-531.11,8.982e-05,2]
[347538152,1735908633532,-942.89,8.982e-05,2]
[347538153,1735908633542,-500.0,8.982e-05,2]
[347538154,1735908633553,-540.24,8.982e-05,2]
[347538155,1735908633563,-692.57,8.982e-05,2]
[347538156,1735908633572,-500.0,8.982e-05,2]
[347538157,1735908633582,-976.74,8.982e-05,2]
[347538158,1735908633592,-513.75,8.982e-05,2]
[347538159,1735908633602,-500.0,8.982e-05,2]
[347538160,1735908633611,-538.73,8.982e-05,2]
[347538161,1735908633622,-1043.42,8.982e-05,2]
[347538162,1735908633633,-2036.27,8.982e-05,2]
[347538163,1735908633643,-171.97147536,8.982e-05,2]
[347538164,1735908634184,-440.47852464,8.982e-05,2]
[347538165,1735908634194,-500.0,8.982e-05,2]
[347538166,1735908634203,-59.52147536,8.982e-05,2]
[347538167,1735908634232,-780.14,8.881e-05,2]
[347538168,1735908634242,-617.51852464,8.982e-05,2]
[347538169,1735908634251,-500.0,8.982e-05,2]
[347538170,1735908634261,-500.0,8.982e-05,2]
[347538171,1735908634270,-500.0,8.982e-05,2]
[347538172,1735908634280,-500.0,8.982e-05,2]
[347538173,1735908634289,-1220.24,8.982e-05,2]
[347538174,1735908634299,-500.0,8.982e-05,2]
[347538175,1735908634308,-500.0,8.982e-05,2]
[347538176,1735908634318,-500.0,8.982e-05,2]
[347538177,1735908634329,-500.0,8.982e-05,2]
[347538178,1735908634339,-1168.92,8.982e-05,2]
[347538179,1735908634348,-500.0,8.982e-05,2]
[347538180,1735908634358,-500.0,8.982e-05,2]
[347538181,1735908634367,-500.0,8.982e-05,2]
[347538182,1735908634379,-500.0,8.982e-05,2]
[347538183,1735908634389,-500.0,8.982e-05,2]
[347538184,1735908634399,-500.0,8.982e-05,2]
[347538185,1735908634410,-500.0,8.982e-05,2]
[347538186,1735908634420,-500.0,8.982e-05,2]
[347538187,1735908634430,-500.0,8.982e-05,2]
[347538188,1735908634440,-734.05,8.982e-05,2]
[347538189,1735908634450,-500.0,8.982e-05,2]
[347538190,1735908634460,-500.0,8.982e-05,2]
[347538191,1735908634480,-865.62,8.982e-05,2]
[347538192,1735908634490,-500.0,8.982e-05,2]
[347538193,1735908634500,-500.0,8.982e-05,2]
[347538194,1735908634509,-649.04,8.982e-05,2]
[347538195,1735908634519,-500.0,8.982e-05,2]
[347538196,1735908634529,-500.0,8.982e-05,2]
[347538197,1735908634538,-500.0,8.982e-05,2]
[347538198,1735908634548,-500.0,8.982e-05,2]
[347538199,1735908634558,-500.0,8.982e-05,2]
[347538200,1735908634568,-500.0,8.982e-05,2]
[347538201,1735908634578,-500.0,8.982e-05,2]
[347538202,1735908634589,-500.0,8.982e-05,2]
[347538203,1735908634599,-500.0,8.982e-05,2]
[347538204,1735908634608,-590.7,8.982e-05,2]
[347538205,1735908634618,-839.01,8.982e-05,2]
[347538206,1735908634631,-500.0,8.982e-05,2]